Cogmind - Beta 13 *** ADVENTURER MODE // 2024.06.27 @ 13:42:10 // Winter2019/RPGLIKE Player: Kurtz Result: Destroyed by as-56770 with Assembled Blade Performance ------------- Evolutions (1) 500 Regions Visited (5) 1000 Robots Destroyed (19) 95 Value Destroyed (348) 348 Prototype IDs (2) 40 Alien Tech Used (0) 0 Bonus (0) 0 TOTAL SCORE: 1983 Bonus ------- None Cogmind --------- Core Integrity 0/700 Matter 281/300 Energy 250/250 System Corruption 2% Temperature Cool (0) Movement Rolling (80) Location -9/Exiles Parts ------- > --- POWER (1) -------- Ion Engine > --- PROPULSION (2) --- Wheel Wheel > --- UTILITY (5) ------ Structural Scanner Signal Interpreter Terrain Scanner > --- WEAPON (2) ------- Shock Rifle Heavy Assault Rifle > --- INVENTORY (4) ---- ECM Suite Heavy Assault Rifle Peak State ------------ > --- POWER ------------ Ion Engine > --- PROPULSION ------- Wheel Wheel > --- UTILITY ---------- Structural Scanner Signal Interpreter Terrain Scanner Heavy Armor Plating > --- WEAPON ----------- Shock Rifle Heavy Assault Rifle > --- INVENTORY -------- ECM Suite Heavy Assault Rifle [Rating: 17] Favorites ----------- Power Ion Engine Engine Ion Engine Propulsion Wheel Wheel Wheel Utility Signal Interpreter Device Structural Scanner Processor Signal Interpreter Protection Weapon Shielding Weapon Assault Rifle Energy Gun Shock Rifle Ballistic Gun Assault Rifle Build | -11 -10 -10 -9 -9 -9 ------- Run | Yrd Mat Min Mat Min Exi Slots Evolved 6 | 3 . 1 1 1 . Power . | . . . . . . Propulsion 1 | 1 . . . . . Utility 4 | 1 . 1 1 1 . Weapon 1 | 1 . . . . . Parts Attached 18 | 6 6 2 3 1 . Power 1 | 1 . . . . . Engine 1 | 1 . . . . . Core . | . . . . . . Reactor . | . . . . . . Propulsion 5 | 2 3 . . . . Treads . | . . . . . . Leg . | . . . . . . Wheel 5 | 2 3 . . . . Hover . | . . . . . . Flight . | . . . . . . Utility 6 | . 3 1 1 1 . Device 3 | . 1 1 . 1 . Storage . | . . . . . . Processor 1 | . 1 . . . . Hackware . | . . . . . . Protection 2 | . 1 . 1 . . Artifact . | . . . . . . Weapon 6 | 3 . 1 2 . . Energy Gun 1 | . . 1 . . . Energy Cannon . | . . . . . . Ballistic Gun 5 | 3 . . 2 . . Ballistic Cannon . | . . . . . . Launcher . | . . . . . . Special Weapon . | . . . . . . Impact Weapon . | . . . . . . Slashing Weapon . | . . . . . . Piercing Weapon . | . . . . . . Special Melee Weapon . | . . . . . . Unidentified Prototypes . | . . . . . . Parts Lost 1 | . . . . . 1 Power . | . . . . . . Propulsion . | . . . . . . Utility 1 | . . . . . 1 Weapon . | . . . . . . Highest Loss Streak 1 | . . . . . 1 To Critical Strikes . | . . . . . . Average Slot Usage (%) 95 | . 98 100 91 90 89 Engine 12 | . 14 12 11 10 10 Wheel 24 | . 28 25 22 20 20 Device 11 | . 4 12 11 20 20 Processor 10 | . 9 12 11 10 10 Protection 11 | . 13 12 11 10 9 Energy Gun 5 | . . 7 11 10 10 Ballistic Gun 18 | . 28 16 11 10 10 Naked Turns . | . . . . . . Heaviest Build 28 | 8 10 12 27 28 28 Greatest Support 32 | 32 32 20 20 20 20 Greatest Overweight (x) 2 | 2 . . 1 1 1 Average Overweight (x) . | . . . . 1 . Largest Inventory Capacity 4 | 4 4 4 4 4 4 Average Capacity 3 | 3 4 4 4 4 4 Most Carried 4 | 1 4 4 4 2 2 Average Carried 2 | . 2 3 2 2 2 Final Capacity 4 | 4 4 4 4 4 4 Final Carried 4 | 1 4 4 3 2 2 Class Distribution -------------------- 71% | Mutant 28% | Skirmisher Dominant Class ---------------- Mutant | -10/Materials Mutant | -10/Mines Mutant | -9/Materials Skirmisher | -9/Mines Skirmisher | -9/Exiles Resources | -11 -10 -10 -9 -9 -9 ----------- Run | Yrd Mat Min Mat Min Exi Matter Collected 515 | 230 182 27 73 . 3 Remotely . | . . . . . . Salvage Created 350 | . 151 63 136 . . Parts 45 | . 18 4 23 . . Haulers Intercepted . | . . . . . . Recyclers Shooed . | . . . . . . Parts Field Recycled . | . . . . . . Retrieved Matter . | . . . . . . Parts Self-Destructed . | . . . . . . Prevented . | . . . . . . Kills | -11 -10 -10 -9 -9 -9 ------- Run | Yrd Mat Min Mat Min Exi Combat Hostiles Destroyed 18 | . 9 1 8 . . Guns 18 | . 9 1 8 . . Classes Destroyed 4 | . 2 1 1 . . Watcher 1 | . 1 . . . . Swarmer 13 | . 9 . 4 . . Grunt 3 | . . 1 2 . . Sentry 2 | . . . 2 . . Best Kill Streak 5 | . 3 1 5 . . Combat Bots Only 5 | . 3 1 5 . . Max Kills in Single Turn 1 | . 1 1 1 . . Gunslinging . | . . . . . . Exploded . | . . . . . . Melee . | . . . . . . Uniques/NPCs Destroyed . | . . . . . . Combat | -11 -10 -10 -9 -9 -9 -------- Run | Yrd Mat Min Mat Min Exi Hostile Shots Fired 181 | . 38 4 33 . 106 Missed 47 | . 11 2 4 . 30 Damage Taken 1505 | . 166 13 271 . 1055 Core 977 | . 118 8 173 . 678 Absorbed by Shields . | . . . . . . Redirected to Core 777 | . 77 8 118 . 574 Redirected to Shielding 34 | . 17 2 15 . . Ignored by Resistances 440 | . 54 5 78 . 303 Core Remaining (%) 99 | 100 . 99 . . . Volleys Fired 41 | . 23 2 16 . . Largest 2 | . 2 2 2 . . Hottest 73 | . 40 70 73 . . Shots Fired 83 | . 46 4 32 . 1 Gun 83 | . 46 4 32 . 1 Cannon . | . . . . . . Launcher . | . . . . . . Special . | . . . . . . Kinetic 66 | . 46 3 16 . 1 Thermal . | . . . . . . Explosive . | . . . . . . Electromagnetic 17 | . . 1 16 . . Robot Hit Streak 22 | . 7 1 21 . 22 Robot Miss Streak 3 | . 3 2 1 . . Penetration Max . | . . . . . . Secondary Targets 5 | . 5 . . . . Max Gunslinging Chain 1 | . 1 . . . . Shots Hit Robots 58 | . 30 1 26 . 1 Core Hits 26 | . 14 1 11 . . Critical Kills . | . . . . . . Critical Parts Destroyed . | . . . . . . Critical Strikes 1 | . . . 1 . . Corrupt 1 | . . . 1 . . Melee Attacks . | . . . . . . Impact . | . . . . . . Slashing . | . . . . . . Piercing . | . . . . . . Sneak Attacks . | . . . . . . Combat Hostiles . | . . . . . . Follow-up Attacks . | . . . . . . Damage Inflicted 773 | . 328 28 399 . 18 Guns 767 | . 328 28 393 . 18 Cannons . | . . . . . . Explosions . | . . . . . . Melee . | . . . . . . Ramming 6 | . . . 6 . . Kinetic 494 | . 328 10 138 . 18 Thermal . | . . . . . . Explosive . | . . . . . . Electromagnetic 273 | . . 18 255 . . Impact . | . . . . . . Slashing . | . . . . . . Piercing . | . . . . . . Highest Corruption 2 | . . . 2 2 2 Average Corruption 2 | . . . 2 2 2 Corruption Purged . | . . . . . . Corruption Blocked . | . . . . . . Effects 7 | . . . . 2 5 Message Errors 1 | . . . . . 1 Matter Fused 2 | . . . . 1 1 Heat Flow Errors 1 | . . . . . 1 Data Loss (minor) 1 | . . . . 1 . Misfires 1 | . . . . . 1 Alerts 1 | . . . . . 1 Overload Shots . | . . . . . . Overflow Damage . | . . . . . . Projectiles . | . . . . . . Explosions . | . . . . . . Melee . | . . . . . . Knockbacks . | . . . . . . Impact . | . . . . . . Kinetic . | . . . . . . Secondary . | . . . . . . Self-Inflicted Damage 3 | . . . 3 . . Shots . | . . . . . . Rammed 1 | . . . 1 . . Targets Rammed 1 | . . . 1 . . Kicked . | . . . . . . Crushed . | . . . . . . Highest Temperature 257 | . . 9 180 . 257 Average Temperature 65 | . . 6 59 . 95 Received Heat Transfer 425 | . . 6 99 . 320 Effects 3 | . . . . . 3 Interference 3 | . . . . . 3 Siege Activations . | . . . . . . Robots Corrupted . | . . . . . . Combat Hostiles . | . . . . . . Parts Fried . | . . . . . . Impact Corruptions . | . . . . . . Robots Melted . | . . . . . . Combat Hostiles . | . . . . . . Parts Melted . | . . . . . . Heat Transferred . | . . . . . . Parts Sabotaged . | . . . . . . Parts Stolen . | . . . . . . Parts Stripped . | . . . . . . Power Chain Reactions . | . . . . . . Alert | -11 -10 -10 -9 -9 -9 ------- Run | Yrd Mat Min Mat Min Exi Peak Influence 243 | . 222 35 243 79 . Initial 79 | . . 23 11 79 . Average 67 | . 89 10 107 79 . Maximum Alert Level 1 | . 1 . 1 . . Low Security (%) 87 | 100 80 100 78 100 . Level 1 12 | . 19 . 21 . . Level 2 . | . . . . . . Level 3 . | . . . . . . Level 4 . | . . . . . . Level 5 . | . . . . . . High Security . | . . . . . . Max Security . | . . . . . . Squads Dispatched 1 | . . 1 . . . Investigation 1 | . . 1 . . . Extermination . | . . . . . . Reinforcement . | . . . . . . Assault . | . . . . . . Garrison . | . . . . . . Intercept . | . . . . . . Searches Triggered . | . . . . . . Construction Impeded . | . . . . . . Haulers Reinforced . | . . . . . . Active Scanning Responses . | . . . . . . Cargo Convoy Interrupts . | . . . . . . Stealth | -11 -10 -10 -9 -9 -9 --------- Run | Yrd Mat Min Mat Min Exi Distress Signals 5 | . 3 1 1 . . Communications Jammed . | . . . . . . Distress Signals . | . . . . . . Times Spotted 51 | . 15 9 11 . 16 Peak Tracking Total 15 | . 5 15 6 . 15 Tactical Retreats 4 | . 1 1 . . 2 Traps | -11 -10 -10 -9 -9 -9 ------- Run | Yrd Mat Min Mat Min Exi Traps Triggered 2 | . 2 . . . . Indirectly . | . . . . . . Trap Hack Attempts . | . . . . . . Triggered . | . . . . . . Disarmed . | . . . . . . Reprogrammed . | . . . . . . Reused . | . . . . . . Traps Extracted . | . . . . . . Installed . | . . . . . . Triggered . | . . . . . . Machines | -11 -10 -10 -9 -9 -9 ---------- Run | Yrd Mat Min Mat Min Exi Machines Disabled 1 | . . . 1 . . Max in Single Turn 1 | . . . 1 . . Machines Repaired . | . . . . . . Machines Dismantled . | . . . . . . Machines Sabotaged . | . . . . . . Overloaded Fab Kills . | . . . . . . Hacking | -11 -10 -10 -9 -9 -9 --------- Run | Yrd Mat Min Mat Min Exi Machines Accessed 10 | . 5 1 1 . 3 Terminals 6 | . 5 . 1 . . Fabricators . | . . . . . . Repair Stations . | . . . . . . Recycling Units . | . . . . . . Scanalyzers . | . . . . . . Garrison Access . | . . . . . . Total Hacks 36 | . 8 1 1 . 26 Successful 34 | . 6 1 1 . 26 Failed 2 | . 2 . . . . Catastrophic . | . . . . . . Database Lockouts . | . . . . . . Manual . | . . . . . . Terminals 9 | . 8 . 1 . . Fabricators . | . . . . . . Repair Stations . | . . . . . . Recycling Units . | . . . . . . Scanalyzers . | . . . . . . Garrison Access . | . . . . . . Terminal Hacks 34 | . 6 1 1 . 26 Record 26 | . . . . . 26 Prototype ID Bank 1 | . 1 . . . . Open Door 1 | . . 1 . . . Alert Level 1 | . 1 . . . . Unreport Threat 1 | . 1 . . . . Locate Traps 3 | . 2 . 1 . . Zone Layout 1 | . 1 . . . . Fabricator Hacks . | . . . . . . Repair Station Hacks . | . . . . . . Recycling Unit Hacks . | . . . . . . Scanalyzer . | . . . . . . Garrison Access Hacks . | . . . . . . Unauthorized Hacks . | . . . . . . Terminals . | . . . . . . Fabricators . | . . . . . . Repair Stations . | . . . . . . Recycling Units . | . . . . . . Scanalyzers . | . . . . . . Garrison Access . | . . . . . . Data Cores Recovered . | . . . . . . Used . | . . . . . . Hacking Detections 2 | . 2 . . . . Full Trace Events . | . . . . . . Feedback Events . | . . . . . . Feedback Blocked . | . . . . . . Robot Schematics Acquired . | . . . . . . Robots Built . | . . . . . . Authchips . | . . . . . . Time . | . . . . . . Total Robot Build Rating . | . . . . . . Part Schematics Acquired . | . . . . . . Parts Built . | . . . . . . Authchips . | . . . . . . Time . | . . . . . . Total Part Build Rating . | . . . . . . Parts Repaired . | . . . . . . Time . | . . . . . . Parts Recycled . | . . . . . . Recycled Matter . | . . . . . . Retrieved Matter . | . . . . . . Retrieved Components . | . . . . . . Parts Scanalyzed . | . . . . . . Part Schematics Acquired . | . . . . . . Parts Damaged . | . . . . . . Bothacking | -11 -10 -10 -9 -9 -9 ------------ Run | Yrd Mat Min Mat Min Exi Used RIF Installer . | . . . . . . Robots Hacked . | . . . . . . Non-combat . | . . . . . . Combat . | . . . . . . Robot Hacks Applied . | . . . . . . Relay Couplers Released . | . . . . . . Fabnet Peak Effective % . | . . . . . . Robots Rewired . | . . . . . . Allies Hacked . | . . . . . . Hacks Repelled . | . . . . . . Allies | -11 -10 -10 -9 -9 -9 -------- Run | Yrd Mat Min Mat Min Exi Total Allies 2 | . . 2 . . . Largest Group 2 | . . 2 . . . Highest-Rated Group 46 | . . 46 . . . Highest-Rated Ally 31 | . . 31 . . . Total Orders . | . . . . . . Ally Attacks 8 | . . 8 . . . Total Damage 262 | . . 262 . . . Kills 4 | . . 4 . . . Allies Corrupted . | . . . . . . Allies Melted . | . . . . . . Intel | -11 -10 -10 -9 -9 -9 ------- Run | Yrd Mat Min Mat Min Exi Robot Analysis Total . | . . . . . . Derelict Logs Recovered 3 | . . 2 . 1 . Drone Launches . | . . . . . . Drone Recoveries . | . . . . . . Exploration | -11 -10 -10 -9 -9 -9 ------------- Run | Yrd Mat Min Mat Min Exi Turns Passed 1863 | 44 732 380 191 88 428 Spaces Moved 1823 | 42 682 445 119 92 443 Core 18 | 18 . . . . . Treads . | . . . . . . Legs . | . . . . . . Wheels 1805 | 24 682 445 119 92 443 Hover . | . . . . . . Flight . | . . . . . . Fastest Speed 50 | 50 80 80 80 95 80 Average Speed 88 | 83 89 80 90 95 94 Slowest Speed 150 | 150 100 80 95 95 95 Overloaded Moves . | . . . . . . Propulsion Burnouts . | . . . . . . Robots Hopped . | . . . . . . Cave-ins Triggered . | . . . . . . Exploration Rate (%) 53 | 3 98 88 15 37 82 Regions Visited 5 Branch Regions 3 Pre-discovered Areas 3 | . . 2 . 1 . Known Exits Taken 4 | . 1 1 1 1 . Unknown Exits Taken 1 | 1 . . . . . Scrap Searched 2 | . . 1 . 1 . Spaces Dug . | . . . . . . Terrain Destroyed . | . . . . . . Melee . | . . . . . . Projectile . | . . . . . . AOE . | . . . . . . Terrain Rammed . | . . . . . . Walls Destroyed . | . . . . . . Machines Disabled . | . . . . . . Actions | -11 -10 -10 -9 -9 -9 --------- Run | Yrd Mat Min Mat Min Exi Total 1992 | 47 765 465 170 92 453 Wait 86 | . 42 12 22 . 10 Move 1818 | 41 681 444 118 91 443 Hop . | . . . . . . Pick Up 6 | . 5 1 . . . Fast Attach 8 | 5 1 1 1 . . Attach 6 | . 3 1 1 1 . Detach 1 | . 1 . . . . Swap 4 | 1 2 . 1 . . Drop 6 | . 2 2 2 . . Fire 41 | . 23 2 16 . . Melee . | . . . . . . Ram 1 | . . . 1 . . Kick . | . . . . . . Crush . | . . . . . . Escape Stasis . | . . . . . . Rewire . | . . . . . . Trap . | . . . . . . Miscellaneous 15 | . 5 2 8 . . Route ------- -11/Scrapyard -10/Materials (discovered 5 exits: *Mat x3 / *Min x2) -10/Mines -9/Materials (discovered 2 exits: Mat / *Min) -9/Mines -9/Exiles (discovered 1 exit: *Min) History --------- Turn | Location | Event 2 | -11/Scrapyard | Upgraded with Propulsion slot (x1) 2 | -11/Scrapyard | Upgraded with Utility slot (x1) 2 | -11/Scrapyard | Upgraded with Weapon slot (x1) 26 | -11/Scrapyard | Discovered new exit (range 12) 45 | -11/Scrapyard | Entered Materials 288 | -10/Materials | Discovered new exit (range 10) 303 | -10/Materials | Identified exit to Materials 304 | -10/Materials | Build established: Mutant 366 | -10/Materials | Discovered exit to Materials (range 15) 503 | -10/Materials | Discovered new exit (range 7) 508 | -10/Materials | Identified exit to Mines 609 | -10/Materials | Discovered exit to Materials (range 16) 683 | -10/Materials | Discovered exit to Mines (range 15) 777 | -10/Materials | Entered Mines 779 | -10/Mines | Reached level 2 779 | -10/Mines | Upgraded with Utility slot (x1) 855 | -10/Mines | Assembled infested the area 860 | -10/Mines | Assisted by a Guerilla fighting off Assembled 904 | -10/Mines | Met a Derelict shopkeep closing up shop 910 | -10/Mines | Lost 3 allies 931 | -10/Mines | Learned location of Storage (-8) 966 | -10/Mines | Learned 4 Materials zone layouts 1151 | -10/Mines | Discovered exit to Materials (range 4) 1157 | -10/Mines | Entered Materials 1158 | -9/Materials | Identified exit to Mines 1158 | -9/Materials | Identified exit to Materials 1159 | -9/Materials | Reached level 3 1215 | -9/Materials | Upgraded with Utility slot (x1) 1247 | -9/Materials | Reached level 4 1348 | -9/Materials | Entered Mines 1348 | -9/Mines | Upgraded with Utility slot (x1) 1359 | -9/Mines | Learned location of Recycling (-8) 1432 | -9/Mines | Deemed a non-threat by the Exiles lab entrance 1432 | -9/Mines | Discovered new exit (range 5) 1435 | -9/Mines | Identified exit to Exiles 1436 | -9/Mines | Entered Exiles 1450 | -9/Exiles | Discovered new exit (range 14) 1461 | -9/Exiles | Identified exit to Mines 1479 | -9/Exiles | Met 8R-AWN 1496 | -9/Exiles | Met EX-HEX 1558 | -9/Exiles | Met EX-DEC 1603 | -9/Exiles | Met EX-BIN 1635 | -9/Exiles | Build established: Skirmisher 1741 | -9/Exiles | Visited The Gauntlet 1808 | -9/Exiles | Attacked by the Exiles 1833 | -9/Exiles | Core integrity fell below 50% 1852 | -9/Exiles | Core integrity fell below 20% 1864 | -9/Exiles | Destroyed by as-56770 with Assembled Blade Last Messages --------------- 01849_ Machine disabled. 01849_ Penetrated by HV Slug. 01849_ HV Slug penetrates Wall. 01851_ Penetrated by HV Slug. 01851_ HV Slug penetrates Machine. 01851_ Penetrated by HV Slug. 01851_ HV Slug penetrates Machine. 01853_ Penetrated by HV Slug. 01853_ HV Slug penetrates Machine. 01853_ Machine disabled. 01853_ Penetrated by HV Slug. 01853_ HV Slug penetrates Wall. 01856_ Penetrated by HV Slug. 01856_ HV Slug penetrates Machine. 01856_ Machine disabled. 01856_ Penetrated by HV Slug. 01856_ HV Slug penetrates Machine. 01858_ System corrupted: Matter fused (-9). 01858_ HV Slug penetrates Machine. [Achievement: Back For More] Map ----- +----------------------------------------------------+ | """"##???????????????????????????????????????????? | | """##?#?????????????????????????????????????????? | | """##????#??????????????????????????????????????? | | """##???"???????????????????????????????????????? | | """## "?"???????????????????????????????????????? | | """## ?????#?????????????????????????????#??????? | | """"""? ???????????????????????????????#???#??### | | """####?????????????????????????????????????????? | | """"" ??#????????????????????????????#??????####? | | # ???????????????????????????????##??????#?#?? | | """"# "??#????????????????????????????#??###???### | | ##### ""??#?????#?#????????????????#???#???#??#### | | ########?#???#??#????????????#?????##???#??#?#### | | ?####????#?##????#????????????????????#?????#### | | #############??##???##?##??????????#???????#### > | | #############?#???#???##??????##????#??###???## | | #"""""""""####?#?#???#????????#?#?#?#??#?###### | | " """ """"###??##?#????#??###???##??##?#??#### | | "" " ###?????#??######?#??##??##?##?### | | " """##???#???#########??##??#?#?##?## | | " "####?#??#?########?????#?#???#### | | " "#######?#?###" ###???#####?##### | | ""####????###" ####???###?#?### # | | """##??#####" #######?####### # | | "######## ############## ## | | ###### a@ ########## ## | | ##### a #""""## ### | | ### a * ### | | a a ## * ## | | #### ## | | "###"""""#### # | | # "################ * | | ######################### | | #########?#??##?????######## | | ####?????#?##?#?#????########## | | " " ####?##?#?#????##????###?######## | | " ""#" "#####??####???????????##????#?###" | | " """##"" """ ###########?#???##?#?????????##?#### | | """"#############?#????#???#?##???????#?#?????#### | | #################???##???#????#?#?#???#???#??#???# | | ######?????#?#??#???#??#??##?????##??????????#??## | | ?###??#???#?#?#?#????##??????##???#???#???????#?#? | | ?#?#?#???#?#????#?#?????????????#????????#??#????# | | ?##??##???#?????###?#???????????????????????????## | | ??##?#???#????????????????????????????????????#??# | | ??#?#????????????????????????????????????????#??#? | | ???#?????????????????????????????????????????????? | | ??#???????????????????????????????????????????#??# | | ?????????????????????????????????????????????????? | | ?????????????????????????????????????????????????? | +----------------------------------------------------+ Best States ------------- Heat Dissipation 31 Energy Generation 10 Energy Capacity 250 Matter Stores 300 Matter Capacity 300 Sight Range 17 Robot Scan Range 6 Terrain Scan Range 14 Terrain Scan Density 210 Armor Coverage 600 Resistance: KI 20 Resistance: TH 20 Resistance: EX 20 Resistance: EM 20 Resistance: I 20 Resistance: S 20 Resistance: P 20 Weapon Shielding 33 Evasion (%) 44 Offensive Hacking 15 Item Schematics ----------------- None Robot Schematics ------------------ None Fabricated ------------ Nothing Alien Tech Used ----------------- None Achievements -------------- Back For More Challenges ------------ None RPGLIKE | -11 -10 -10 -9 -9 -9 --------- Run | Yrd Mat Min Mat Min Exi Levels Raised 3 | . . 1 2 . . XP Earned 9986 | 4000 1085 600 3601 500 200 XP Spent 8475 | 4000 . 1475 1100 1900 . Upgrades 21 | 7 . 5 1 8 . Propulsion Slot 1 | 1 . . . . . Utility Slot 4 | 1 . 1 1 1 . Weapon Slot 1 | 1 . . . . . Core Integrity 2 | . . 1 . 1 . Heat Dissipation 1 | . . . . 1 . Inventory Capacity 4 | 4 . . . . . Sight Range 1 | . . . . 1 . Sensor Range 3 | . . 1 . 2 . Terrain Scan Density 2 | . . . . 2 . Ranged Accuracy 1 | . . 1 . . . Hack Attack % 1 | . . 1 . . . Protomatter Created 202 | . 45 . 157 . . Integrity Restored 289 | . 87 46 156 . . Core 277 | . 75 46 156 . . Parts 12 | . 12 . . . . Protomatter Decayed 196 | . 15 118 63 . . Game ------ Seed MetaNullAutogun Manual? 0 Play Time 00:28:02 Cumulative 464.2 hours Start 2024.06.26 @ 16:41:13 End 2024.06.27 @ 13:42:10 Sessions 3 Manual Loads 0 Difficulty Adventurer Special Mode Winter2019/RPGLIKE Game No. 50 Rogue 1 Adventurer 47 Explorer 2 Win Type - Total 3 Types 2/0/0/1/0/0/0/0/0 Lore% 53 Gallery% 44 Achievement% 58 Wizard Run 0 Options --------- Layout 1 ASCII 0 Keyboard 0 Movement Numpad Keybinds 0 Fullscreen 1 Font 32/SmallcapsGlow Map View 77x35 Zoom Use 0% Tactical HUD 1 Map Filters NONE Filters NONE Steam 1 RUN: 8a8466c4-5c40-4807-b310-c3430b755f7b